Cogmind - Beta 14 @@@ ROGUE MODE // 2025.03.19 @ 17:27:57 Player: G4-R3D Result: Destroyed by G-47 Trooper with Particle Gun Performance ------------- Evolutions (2) 1000 Regions Visited (8) 1600 Robots Destroyed (74) 370 Value Destroyed (2712) 2712 Prototype IDs (23) 460 Alien Tech Used (0) 0 Bonus (2824) 2824 TOTAL SCORE: 8966 Bonus ------- High Alert Combat Kills 180 Entered Garrisons 400 Used RIF Installer 2000 Aligned with FarCom 300 Friendly Fire -56 Cogmind --------- Core Integrity 0/550 Matter 290/300 Energy 90/100 System Corruption 4% Temperature Cool (9) Movement Rolling (105) Ox1 Location -8/Garrison Parts ------- > --- POWER (1) -------- (None) > --- PROPULSION (3) --- Carbon-fiber Leg Armored Wheel > --- UTILITY (5) ------ Lightpack 2.0 Hardened Medium Armor Plating > --- WEAPON (2) ------- Hammer > --- INVENTORY (40) --- Ion Engine Light Nuclear Core Aluminum Leg Aluminum Leg Aluminum Leg Improved Heat Sink Improved Heat Sink Light Armor Plating Hardened Medium Armor Plating Hardened Medium Armor Plating Hardened Medium Armor Plating Relay Coupler [NC] (30) Relay Coupler [NC] (27) Relay Coupler [Grunt] (34) Relay Coupler [Sentry] (28) Relay Coupler [Sentry] (27) Relay Coupler [Sentry] (23) Relay Coupler [Sentry] (29) Peak State ------------ > --- POWER ------------ Light Nuclear Core > --- PROPULSION ------- Aluminum Leg Aluminum Leg Aluminum Leg > --- UTILITY ---------- Lightpack 2.0 Hardened Medium Armor Plating Hacking Suite > --- WEAPON ----------- Variable Charge Gun Katana > --- INVENTORY -------- Ion Engine Light Nuclear Core Light Nuclear Core Light Nuclear Core Armored Wheel Improved Heat Sink Light Armor Plating Hardened Medium Armor Plating Hardened Medium Armor Plating Hardened Medium Armor Plating Relay Coupler [NC] Relay Coupler [NC] Relay Coupler [Grunt] Relay Coupler [Sentry] Relay Coupler [Sentry] Relay Coupler [Sentry] Relay Coupler [Sentry] Spread Laser Heavy Assault Rifle Hammer [Rating: 56] Favorites ----------- Power Light Nuclear Core Engine Light Ion Engine Power Core Light Nuclear Core Propulsion Aluminum Leg Leg Aluminum Leg Wheel Armored Wheel Utility Lightpack 2.0 Device Structural Scanner Storage Lightpack 2.0 Hackware Hacking Suite Protection Hardened Medium Armor Plating Weapon EM Pulse Gun Energy Gun EM Pulse Gun Energy Cannon Heavy Particle Cannon Ballistic Gun Heavy Assault Rifle Launcher Mini Grenade Launcher Impact Weapon Hammer Slashing Weapon Katana Build | -11 -10 -10 -10 -9 -8 -8 -8 -8 ------- Run | Yrd Mat Min Exi Min Mat Gar Mat Gar Slots Evolved 4 | . . . . . 4 . . . Power . | . . . . . . . . . Propulsion 1 | . . . . . 1 . . . Utility 3 | . . . . . 3 . . . Weapon . | . . . . . . . . . Parts Attached 87 | 7 12 3 1 1 17 33 7 6 Power 9 | 1 3 . . . 1 2 1 1 Engine 4 | 1 2 . . . . 1 . . Core 5 | . 1 . . . 1 1 1 1 Reactor . | . . . . . . . . . Propulsion 23 | 2 4 2 . . 5 6 1 3 Treads . | . . . . . . . . . Leg 22 | 2 4 2 . . 5 6 1 2 Wheel 1 | . . . . . . . . 1 Hover . | . . . . . . . . . Flight . | . . . . . . . . . Utility 15 | 2 2 . . . 3 4 3 1 Device 3 | 1 1 . . . 1 . . . Storage 3 | 1 1 . . . 1 . . . Processor . | . . . . . . . . . Hackware 1 | . . . . . . 1 . . Protection 8 | . . . . . 1 3 3 1 Artifact . | . . . . . . . . . Weapon 40 | 2 3 1 1 1 8 21 2 1 Energy Gun 15 | 2 2 1 . 1 2 6 1 . Energy Cannon 6 | . . . . . 2 4 . . Ballistic Gun 2 | . 1 . . . . 1 . . Ballistic Cannon . | . . . . . . . . . Launcher 6 | . . . . . 4 2 . . Special Weapon . | . . . . . . . . . Impact Weapon 7 | . . . 1 . . 5 . 1 Slashing Weapon 4 | . . . . . . 3 1 . Piercing Weapon . | . . . . . . . . . Special Melee Weapon . | . . . . . . . . . Unidentified Prototypes . | . . . . . . . . . Corrupted Parts 2 | . 1 . . . . 1 . . System Corruption 7 | . 3 . . . . 4 . . Parts Lost 29 | . 5 . . . 1 14 1 8 Power 5 | . 1 . . . . 2 . 2 Propulsion 8 | . 1 . . . . 5 . 2 Utility 6 | . 1 . . . 1 2 . 2 Weapon 10 | . 2 . . . . 5 1 2 Highest Loss Streak 8 | . 1 . . . 1 3 1 8 To Critical Strikes . | . . . . . . . . . Average Slot Usage (%) 84 | . 98 100 82 99 78 78 80 76 Engine 1 | . 9 . . . . 1 . . Core 9 | . 4 14 14 14 9 7 9 6 Leg 27 | . 28 28 28 28 27 26 27 25 Device 6 | . 13 14 14 14 9 . . . Storage 10 | . 14 14 14 14 9 9 9 9 Hackware 4 | . . . . . . 8 9 9 Protection 5 | . . . . . 6 8 8 9 Energy Gun 10 | . 27 28 1 13 5 5 9 6 Energy Cannon 1 | . . . . . 4 2 . . Launcher 1 | . . . . . 5 1 . . Impact Weapon 2 | . . . 9 14 1 2 . . Slashing Weapon 2 | . . . . . . 4 7 8 Peak Build Rating 56 | 7 9 12 13 14 54 55 56 56 Average Rating 37 | 5 7 11 12 13 48 52 55 54 On Entrance 23 | . 7 8 12 13 14 50 55 56 Naked Turns . | . . . . . . . . . Heaviest Build 29 | 12 20 19 19 20 26 29 26 25 Greatest Support 44 | 20 20 27 27 27 44 44 30 35 Greatest Overweight (x) 2 | 1 . . . . . 2 . 1 Average Overweight (x) . | . . . . . . . . . Largest Inventory Capacity 40 | 8 10 10 10 10 40 40 40 40 Average Capacity 29 | 7 9 10 10 10 40 40 40 40 Most Carried 23 | 1 7 10 10 10 22 23 20 21 Average Carried 13 | . 4 9 9 9 14 17 19 19 Final Capacity 40 | 8 10 10 10 10 40 40 40 40 Final Carried 20 | 1 7 10 10 10 20 19 20 18 Class Distribution -------------------- 64% | Hauler-Mutant 34% | Mutant Dominant Class ---------------- Mutant | -10/Materials Mutant | -10/Mines Mutant | -10/Exiles Mutant | -9/Mines Hauler-Mutant | -8/Materials Hauler-Mutant | -8/Garrison Hauler-Mutant | -8/Materials Hauler-Mutant | -8/Garrison Resources | -11 -10 -10 -10 -9 -8 -8 -8 -8 ----------- Run | Yrd Mat Min Exi Min Mat Gar Mat Gar Matter Collected 1299 | 270 105 38 . 64 279 420 103 20 Remotely 115 | 10 105 . . . . . . . Salvage Created 2380 | 57 310 54 . 12 800 821 205 121 Parts 122 | 3 15 7 . 1 47 29 15 5 Haulers Intercepted . | . . . . . . . . . Recyclers Shooed 2 | . 2 . . . . . . . Parts Field Recycled . | . . . . . . . . . Retrieved Matter . | . . . . . . . . . Parts Self-Destructed . | . . . . . . . . . Prevented . | . . . . . . . . . Kills | -11 -10 -10 -10 -9 -8 -8 -8 -8 ------- Run | Yrd Mat Min Exi Min Mat Gar Mat Gar Combat Hostiles Destroyed 58 | . 8 3 . . 21 19 5 2 Melee 7 | . . . . . . 1 4 2 Guns 19 | . 8 3 . . 1 6 1 . Cannons 6 | . . . . . 4 2 . . AOE 18 | . . . . . 15 3 . . Classes Destroyed 12 | 1 3 . . 1 5 2 . . Worker 5 | . . . . 1 4 . . . Builder 1 | . . . . . 1 . . . Recycler 4 | 1 . . . . 3 . . . Mechanic 1 | . . . . . 1 . . . Operator 1 | . . . . . 1 . . . Watcher 4 | . 1 . . . 2 . 1 . Swarmer 16 | . 3 3 . . 7 1 2 . Grunt 29 | . 5 . . . 12 9 1 2 Brawler 1 | . . . . . . 1 . . Duelist 2 | . . . . . . 2 . . Sentry 9 | . . . . . 1 6 2 . Hunter 1 | . . . . . 1 . . . Best Kill Streak 18 | 1 2 3 . 1 18 3 2 2 Combat Bots Only 7 | . 2 3 . . 7 3 2 2 Max Kills in Single Turn 6 | 1 1 2 . 1 6 3 1 1 Gunslinging 1 | . . 1 . . . . . . Exploded 4 | . . . . . 4 3 . . Melee 1 | . . . . . . 1 1 1 Uniques/NPCs Destroyed . | . . . . . . . . . Combat | -11 -10 -10 -10 -9 -8 -8 -8 -8 -------- Run | Yrd Mat Min Exi Min Mat Gar Mat Gar Hostile Shots Fired 441 | . 73 7 . . 34 186 25 116 Missed 141 | . 26 1 . . 9 60 7 38 Damage Taken 4152 | . 526 52 . . 365 1869 208 1132 Core 621 | . 67 . . . 90 195 47 222 Absorbed by Shields . | . . . . . . . . . Core Remaining (%) 86 | 100 . . . 73 . . . . Volleys Fired 105 | 2 30 2 . . 24 37 10 . Largest 2 | 2 2 2 . . 2 2 2 . Hottest 140 | 80 80 80 . . 138 140 140 . Shots Fired 183 | 4 54 5 . 1 38 64 17 . Gun 127 | 4 54 5 . 1 9 37 17 . Cannon 37 | . . . . . 15 22 . . Launcher 19 | . . . . . 14 5 . . Special . | . . . . . . . . . Kinetic 6 | . . . . . . 6 . . Thermal 111 | 2 18 3 . . 24 47 17 . Explosive 19 | . . . . . 14 5 . . Electromagnetic 47 | 2 36 2 . 1 . 6 . . Robot Hit Streak 12 | 1 11 2 . . 11 12 9 . Robot Miss Streak 7 | 1 3 1 . . 3 7 3 . Penetration Max . | . . . . . . . . . Secondary Targets 2 | . . 2 . . . . . . Max Gunslinging Chain 1 | . . 1 . . . . . . Shots Hit Robots 159 | 2 32 3 . 1 22 69 20 10 Core Hits 126 | 2 15 3 . . 50 40 12 4 Critical Kills 1 | . . . . . 1 . . . Critical Parts Destroyed 7 | . . . . 1 . 6 . . Critical Strikes 11 | . . . . 1 2 6 . 2 Burn 1 | . . . . . 1 . . . Meltdown 1 | . . . . . 1 . . . Smash 7 | . . . . 1 . 6 . . Sever 2 | . . . . . . . . 2 Melee Attacks 117 | . . . . 3 2 65 24 23 Impact 55 | . . . . 3 2 49 . 1 Slashing 62 | . . . . . . 16 24 22 Piercing . | . . . . . . . . . Sneak Attacks 2 | . . . . 1 . . 1 . Combat Hostiles . | . . . . . . . . . Follow-up Attacks 1 | . . . . . . 1 . . Damage Inflicted 5498 | 26 509 49 . 38 2343 1710 500 323 Guns 1203 | 26 440 35 . . 67 433 202 . Cannons 581 | . . . . . 302 279 . . Explosions 2453 | . 57 . . . 1973 423 . . Melee 1234 | . . . . 38 . 575 298 323 Ramming 27 | . 12 14 . . 1 . . . Kinetic 97 | . . . . . . 97 . . Thermal 1328 | . 178 11 . . 369 568 202 . Explosive 2396 | . . . . . 1973 423 . . Electromagnetic 416 | 26 319 24 . . . 47 . . Impact 578 | . . . . 38 . 540 . . Slashing 656 | . . . . . . 35 298 323 Piercing . | . . . . . . . . . Highest Corruption 4 | . 4 4 4 4 . 4 4 4 Average Corruption 3 | . 2 4 4 4 . 4 4 4 Corruption Purged . | . . . . . . . . . Corruption Blocked . | . . . . . . . . . Effects 63 | . 4 12 10 5 . 14 15 3 Message Errors 15 | . 1 3 3 1 . 3 3 1 Matter Fused 16 | . 1 3 2 3 . 2 5 . Heat Flow Errors 7 | . . 2 1 . . 4 . . Energy Discharges 8 | . 2 1 . . . 2 3 . Data Loss (minor) 8 | . . 1 3 . . 1 2 1 Data Loss (major) 6 | . . 1 1 . . 2 1 1 Misfires 2 | . . 1 . 1 . . . . Alerts 1 | . . . . . . . 1 . Overload Shots . | . . . . . . . . . Overflow Damage 256 | . . . . 38 67 151 . . Projectiles . | . . . . . . . . . Explosions 71 | . . . . . 67 4 . . Melee 185 | . . . . 38 . 147 . . Knockbacks 3 | . . . . . . 3 . . Impact 3 | . . . . . . 3 . . Kinetic . | . . . . . . . . . Secondary . | . . . . . . . . . Self-Inflicted Damage 72 | . 25 . . . 12 35 . . Shots 5 | . 1 . . . 1 3 . . Rammed . | . . . . . . . . . Targets Rammed 9 | . 7 1 . . 1 . . . Kicked 9 | . 7 1 . . 1 . . . Crushed . | . . . . . . . . . Highest Temperature 338 | 36 187 199 182 10 338 313 328 12 Average Temperature 88 | 20 53 71 95 7 90 92 154 4 Received Heat Transfer 1773 | . 180 . . . 72 909 72 540 Effects 2 | . . . . . . . 2 . Interference 2 | . . . . . . . 2 . Siege Activations . | . . . . . . . . . Robots Corrupted 8 | . . . . 1 . 7 . . Combat Hostiles 7 | . . . . . . 7 . . Parts Fried 13 | . . . . . . 13 . . Impact Corruptions 9 | . . . . 1 . 8 . . Robots Melted 1 | . . . . . 1 . . . Combat Hostiles 1 | . . . . . 1 . . . Parts Melted 4 | . . 1 . . 3 . . . Heat Transferred 2143 | . 325 25 . . 666 817 310 . Parts Sabotaged . | . . . . . . . . . Parts Stolen . | . . . . . . . . . Parts Stripped . | . . . . . . . . . Power Chain Reactions 1 | . 1 . . . . . . . Alert | -11 -10 -10 -10 -9 -8 -8 -8 -8 ------- Run | Yrd Mat Min Exi Min Mat Gar Mat Gar Peak Influence 1010 | 5 342 136 . 7 482 1010 510 211 Initial 492 | . 3 51 . . 2 137 492 89 Average 318 | 1 132 100 . 4 134 635 156 139 Maximum Alert Level 3 | . 1 . . . 2 3 2 1 Low Security (%) 53 | 100 70 100 . 100 73 3 85 86 Level 1 15 | . 29 . . . 22 19 9 13 Level 2 17 | . . . . . 3 42 5 . Level 3 13 | . . . . . . 34 . . Level 4 . | . . . . . . . . . Level 5 . | . . . . . . . . . High Security . | . . . . . . . . . Max Security . | . . . . . . . . . Squads Dispatched 10 | . 4 . . . 2 . 4 . Investigation 5 | . 3 . . . . . 2 . Extermination . | . . . . . . . . . Reinforcement 3 | . 1 . . . 2 . . . Assault . | . . . . . . . . . Garrison 2 | . . . . . . . 2 . Intercept . | . . . . . . . . . Searches Triggered . | . . . . . . . . . Construction Impeded 1 | . . . . . 1 . . . Haulers Reinforced . | . . . . . . . . . Active Scanning Responses . | . . . . . . . . . Cargo Convoy Interrupts . | . . . . . . . . . Stealth | -11 -10 -10 -10 -9 -8 -8 -8 -8 --------- Run | Yrd Mat Min Exi Min Mat Gar Mat Gar Distress Signals 6 | . 2 . . . 2 . 2 . Communications Jammed . | . . . . . . . . . Distress Signals . | . . . . . . . . . Times Spotted 119 | . 18 3 . . 29 28 17 24 Peak Tracking Total 16 | . 6 3 . . 8 7 3 16 Tactical Retreats 9 | . 1 . . . . 4 1 3 Traps | -11 -10 -10 -10 -9 -8 -8 -8 -8 ------- Run | Yrd Mat Min Exi Min Mat Gar Mat Gar Traps Triggered 3 | . 1 . . . . 2 . . Indirectly . | . . . . . . . . . Trap Hack Attempts . | . . . . . . . . . Triggered . | . . . . . . . . . Disarmed . | . . . . . . . . . Reprogrammed . | . . . . . . . . . Reused . | . . . . . . . . . Traps Extracted . | . . . . . . . . . Installed . | . . . . . . . . . Triggered . | . . . . . . . . . Machines | -11 -10 -10 -10 -9 -8 -8 -8 -8 ---------- Run | Yrd Mat Min Exi Min Mat Gar Mat Gar Machines Disabled 8 | . 2 . . . 4 2 . . Max in Single Turn 2 | . 1 . . . 2 1 . . Garrison Relay 2 | . . . . . . 2 . . Machines Repaired . | . . . . . . . . . Machines Dismantled . | . . . . . . . . . Machines Sabotaged . | . . . . . . . . . Overloaded Fab Kills . | . . . . . . . . . Hacking | -11 -10 -10 -10 -9 -8 -8 -8 -8 --------- Run | Yrd Mat Min Exi Min Mat Gar Mat Gar Machines Accessed 23 | . 3 1 1 . 8 2 7 1 Terminals 15 | . 1 . . . 6 2 5 1 Fabricators . | . . . . . . . . . Repair Stations . | . . . . . . . . . Recycling Units 2 | . 2 . . . . . . . Scanalyzers 2 | . . . . . 1 . 1 . Garrison Access 2 | . . . . . 1 . 1 . Total Hacks 61 | . 8 1 1 . 18 5 27 1 Successful 42 | . 7 1 1 . 11 1 20 1 Failed 19 | . 1 . . . 7 4 7 . Catastrophic 3 | . . . . . 1 1 1 . Database Lockouts . | . . . . . . . . . Manual 35 | . 8 . 1 . 10 . 16 . Terminals 44 | . 6 . . . 13 5 19 1 Fabricators . | . . . . . . . . . Repair Stations . | . . . . . . . . . Recycling Units 2 | . 2 . . . . . . . Scanalyzers 11 | . . . . . 4 . 7 . Garrison Access 2 | . . . . . 1 . 1 . Terminal Hacks 19 | . 4 1 1 . 4 1 7 1 Record 1 | . 1 . . . . . . . Robot Analysis 4 | . 2 . . . 2 . . . Open Door 1 | . . 1 . . . . . . Emergency Access Points 2 | . . . . . . 1 . 1 Unreport Threat 5 | . . . . . 2 . 3 . Investigation Status 1 | . 1 . . . . . . . Recall Investigation 2 | . . . . . . . 2 . Zone Layout 2 | . . . . . . . 2 . Derelict Proto ID Bank 1 | . . . 1 . . . . . Fabricator Hacks . | . . . . . . . . . Repair Station Hacks . | . . . . . . . . . Recycling Unit Hacks . | . . . . . . . . . Scanalyzer 11 | . . . . . 4 . 7 . Insert Component 6 | . . . . . 2 . 4 . Analyze 5 | . . . . . 2 . 3 . Garrison Access Hacks 2 | . . . . . 1 . 1 . Unlock Access 2 | . . . . . 1 . 1 . Unauthorized Hacks 10 | . 3 . . . 2 . 5 . Terminals 8 | . 1 . . . 2 . 5 . Assimilate 1 | . . . . . . . 1 . Botnet 7 | . 1 . . . 2 . 4 . Fabricators . | . . . . . . . . . Repair Stations . | . . . . . . . . . Recycling Units 2 | . 2 . . . . . . . Tunnel 2 | . 2 . . . . . . . Scanalyzers . | . . . . . . . . . Garrison Access . | . . . . . . . . . Data Cores Recovered . | . . . . . . . . . Used . | . . . . . . . . . Hacking Detections 17 | . 2 . . . 7 2 5 1 Full Trace Events 4 | . . . . . . 2 2 . Feedback Events . | . . . . . . . . . Feedback Blocked . | . . . . . . . . . Robot Schematics Acquired . | . . . . . . . . . Robots Built . | . . . . . . . . . Authchips . | . . . . . . . . . Time . | . . . . . . . . . Total Robot Build Rating . | . . . . . . . . . Part Schematics Acquired 5 | . . . . . 2 . 3 . Parts Built . | . . . . . . . . . Authchips . | . . . . . . . . . Time . | . . . . . . . . . Total Part Build Rating . | . . . . . . . . . Parts Repaired . | . . . . . . . . . Time . | . . . . . . . . . Parts Recycled . | . . . . . . . . . Recycled Matter . | . . . . . . . . . Retrieved Matter . | . . . . . . . . . Retrieved Components . | . . . . . . . . . Parts Scanalyzed 5 | . . . . . 2 . 3 . Part Schematics Acquired 5 | . . . . . 2 . 3 . Parts Damaged . | . . . . . . . . . Bothacking | -11 -10 -10 -10 -9 -8 -8 -8 -8 ------------ Run | Yrd Mat Min Exi Min Mat Gar Mat Gar Used RIF Installer 4 | . . . . . . 2 . 2 Coupler Efficiency 1 | . . . . . . . . 1 Command Fork 1 | . . . . . . . . 1 Zone Cloak 1 | . . . . . . 1 . . Robots Hacked . | . . . . . . . . . Non-combat . | . . . . . . . . . Combat . | . . . . . . . . . Robot Hacks Applied . | . . . . . . . . . Relay Couplers Released 10 | . . . . . . 10 . . Machine Destruction 10 | . . . . . . 10 . . Fabnet Peak Effective % . | . . . . . . . . . Robots Rewired . | . . . . . . . . . Allies Hacked . | . . . . . . . . . Hacks Repelled . | . . . . . . . . . Allies | -11 -10 -10 -10 -9 -8 -8 -8 -8 -------- Run | Yrd Mat Min Exi Min Mat Gar Mat Gar Total Allies 6 | . . 5 . . . . 1 . Largest Group 5 | . . 5 5 3 3 . 1 . Highest-Rated Group 83 | . . 83 83 40 40 . 10 . Highest-Rated Ally 31 | . . 31 31 16 16 . 10 . Total Orders . | . . . . . . . . . Ally Attacks 27 | . . . . . 27 . . . Total Damage 330 | . . . . . 330 . . . Kills 1 | . . . . . 1 . . . Allies Corrupted . | . . . . . . . . . Allies Melted . | . . . . . . . . . Intel | -11 -10 -10 -10 -9 -8 -8 -8 -8 ------- Run | Yrd Mat Min Exi Min Mat Gar Mat Gar Robot Analysis Total 4 | . 2 . . . 2 . . . Derelict Logs Recovered 3 | . . 2 . 1 . . . . Drone Launches . | . . . . . . . . . Drone Recoveries . | . . . . . . . . . Exploration | -11 -10 -10 -10 -9 -8 -8 -8 -8 ------------- Run | Yrd Mat Min Exi Min Mat Gar Mat Gar Turns Passed 4924 | 79 422 539 434 269 655 1757 544 225 Spaces Moved 3232 | 53 244 408 341 202 428 1072 353 131 Core 5 | 5 . . . . . . . . Treads . | . . . . . . . . . Legs 3203 | 48 244 408 341 202 428 1072 353 107 Wheels 24 | . . . . . . . . 24 Hover . | . . . . . . . . . Flight . | . . . . . . . . . Fastest Speed 50 | 50 120 120 125 125 123 120 120 105 Average Speed 122 | 116 120 123 125 125 123 123 120 117 Slowest Speed 260 | 190 120 125 125 125 126 260 120 120 Overloaded Moves . | . . . . . . . . . Propulsion Burnouts . | . . . . . . . . . Robots Hopped . | . . . . . . . . . Cave-ins Triggered . | . . . . . . . . . Exploration Rate (%) 55 | 5 60 96 86 65 42 80 38 26 Regions Visited 8 Branch Regions 3 Pre-discovered Areas 2 | . 2 . . . . . . . Known Exits Taken 2 | . . . . . 1 . 1 . Unknown Exits Taken 5 | 1 1 1 1 1 . . . . Scrap Searched 3 | . . 1 . 2 . . . . Spaces Dug 20 | . . . . 2 2 2 12 2 Terrain Destroyed 155 | . 2 . . 2 113 22 14 2 Melee 20 | . . . . 2 2 2 12 2 Projectile 5 | . . . . . 3 . 2 . AOE 130 | . 2 . . . 108 20 . . Terrain Rammed . | . . . . . . . . . Walls Destroyed . | . . . . . . . . . Machines Disabled . | . . . . . . . . . Actions | -11 -10 -10 -10 -9 -8 -8 -8 -8 --------- Run | Yrd Mat Min Exi Min Mat Gar Mat Gar Total 3793 | 62 314 437 352 214 505 1325 418 166 Wait 184 | . 17 17 4 6 18 96 20 6 Move 3226 | 52 243 407 340 201 428 1071 353 131 Hop . | . . . . . . . . . Pick Up 43 | 1 2 5 1 2 12 19 1 . Fast Attach 20 | 7 4 . . . 2 4 2 1 Attach 26 | . 2 1 1 1 3 14 1 3 Detach 8 | . 1 . 2 . 2 3 . . Swap 41 | . 6 2 . . 12 15 4 2 Drop 13 | . 2 2 4 1 1 . 3 . Fire 105 | 2 30 2 . . 24 37 10 . Melee 116 | . . . . 3 2 64 24 23 Ram . | . . . . . . . . . Kick 9 | . 7 1 . . 1 . . . Crush . | . . . . . . . . . Escape Stasis 2 | . . . . . . 2 . . Rewire . | . . . . . . . . . Trap . | . . . . . . . . . Miscellaneous . | . . . . . . . . . Route ------- -11/Scrapyard -10/Materials (discovered 2 exits: [*Mat] / *Min) -10/Mines (discovered 3 exits: [*Mat x2] / *Exi) -10/Exiles -9/Mines -8/Materials -8/Garrison (discovered 2 exits: *Mat x2) -8/Materials (discovered 3 exits: [*Fac x2] / Gar) -8/Garrison History --------- Turn | Location | Event 9 | -11/Scrapyard | Discovered new exit (range 15) 80 | -11/Scrapyard | Entered Materials 262 | -10/Materials | Discovered new exit (range 10) 308 | -10/Materials | Build established: Mutant 390 | -10/Materials | Discovered new exit (range 7) 502 | -10/Materials | Entered Mines 550 | -10/Mines | Discovered new exit (range 6) 613 | -10/Mines | Met a Derelict who couldn't figure out how to use a Trap Extractor 729 | -10/Mines | Learned Materials garrison access intel 736 | -10/Mines | Learned Materials trap positions 797 | -10/Mines | Discovered new exit (range 10) 873 | -10/Mines | Assisted by bots powering up and referring to "LRC-V3" 984 | -10/Mines | Discovered new exit (range 13) 1023 | -10/Mines | Deemed a non-threat by the Exiles lab entrance 1041 | -10/Mines | Entered Exiles 1041 | -10/Exiles | Accompanied by 5 allies 1071 | -10/Exiles | Led the pair of lost Derelicts to a safe place 1072 | -10/Exiles | Met 8R-AWN 1098 | -10/Exiles | Met EX-HEX 1134 | -10/Exiles | Met EX-BIN 1149 | -10/Exiles | Aligned with FarCom system 1150 | -10/Exiles | Given EX-Vault access code 1179 | -10/Exiles | Opened EX-Vault 1189 | -10/Exiles | Found Lightpack 2.0 1213 | -10/Exiles | Warned to stay clear of 0b10 Research branches 1251 | -10/Exiles | Met EX-DEC 1293 | -10/Exiles | Visited The Gauntlet 1458 | -10/Exiles | Discovered new exit (range 14) 1475 | -10/Exiles | Left Exiles lab with Lightpack 2.0 1475 | -10/Exiles | Entered Mines 1475 | -9/Mines | Accompanied by 3 allies 1489 | -9/Mines | Received a Rocket Launcher from a helpful Derelict 1495 | -9/Mines | Learned Materials terminal intel 1583 | -9/Mines | Found a damaged Exp. Sensor Array with a note attached 1732 | -9/Mines | Discovered new exit (range 5) 1744 | -9/Mines | Entered Materials 1744 | -8/Materials | Accompanied by 3 allies 1744 | -8/Materials | Evolved 4 slots: Propulsion x1, Utility x3 1745 | -8/Materials | Loaded intel: 18 trap records 1746 | -8/Materials | Loaded intel: 12 terminal locations 1747 | -8/Materials | Loaded intel: 1 garrison access location 2064 | -8/Materials | Build established: Hauler-Mutant 2132 | -8/Materials | Destroyed 7 combat bots 2399 | -8/Materials | Identified exit to Garrison 2399 | -8/Materials | Entered Garrison 2839 | -8/Garrison | Triggered checkpoint 2967 | -8/Garrison | Lost 3 parts (1n1u1w) 3231 | -8/Garrison | Discovered new exit (range 10) 3439 | -8/Garrison | Discovered new exit (range 14) 3468 | -8/Garrison | Installed Relay Interface Framework 3551 | -8/Garrison | Garrison Relay disabled 3608 | -8/Garrison | Core integrity fell below 50% 3635 | -8/Garrison | Lost 3 parts (2n1w) 3651 | -8/Garrison | Expanded RIF knowledge: Zone Cloak 4014 | -8/Garrison | Garrison Relay disabled 4156 | -8/Garrison | Entered Materials 4429 | -8/Materials | Discovered new exit (range 10) 4577 | -8/Materials | Garrison activated, responded to threat 4672 | -8/Materials | Discovered new exit (range 16) 4700 | -8/Materials | Identified exit to Garrison 4700 | -8/Materials | Entered Garrison 4711 | -8/Garrison | Expanded RIF knowledge: Command Fork 4829 | -8/Garrison | Expanded RIF knowledge: Coupler Efficiency 4860 | -8/Garrison | Triggered checkpoint 4906 | -8/Garrison | Core integrity fell below 20% 4925 | -8/Garrison | Destroyed by G-47 Trooper with Particle Gun Last Messages --------------- 04860_ Critical hit (Burn: +37). 04864_ G-47 Trooper destroyed. 04866_ Critical hit (Burn: +37). 04876_ G-50 Soldier Carbon-fiber Leg severed. 04879_ Variable Charge Gun destroyed. 04881_ G-50 Soldier destroyed. 04881_ Aluminum Leg destroyed. 04885_ Acquired Carbon-fiber Leg. 04887_ Acquired 20 matter. 04888_ Lgt. Nuclear Core destroyed. 04905_ C-30 ARC bursts open, deploying its payload. 04905_ S-10 Pest unfolds itself. 04909_ Hrd. Medium Armor Plating destroyed. Garrison Door activated. 04914_ S-10 Pest destroyed. 04919_ Katana destroyed. 04920_ Hacking Suite destroyed. 04922_ CEVZDC|LM/TKEE,FJI,QG25KWWLA SW#BYX 04924_ Aluminum Leg destroyed. Map ----- +----------------------------------------------------+ | ??# #??????????????????????????????????????????? | | ??# #??????????????????????????????????????????? | | ??# #??????????????????????????????????????????? | | ??# #??????????????????????????????????????????? | | ??# #??????????????????????????????????????????? | | ??# #??????????????????????????+???????????????? | | ??# #??????????????????????????????????????????? | | ??# #??????????????????????????????+?+?????????? | | ??# #??????????????????????????????????????????? | | ??# #??????????????????????????????????????????? | | ?## #??????????????????????????????????????????? | | ?#" #??????????????????????????????????????????? | | ?## ##?????????????????????????????????????????? | | ??# "#?????????????????????????????+???????????? | | ??# ##?????????????????????????????????????????? | | ### ############???????????????????????????????? | | " #???????????????????????????????? | | + #???????????????????????????????? | | ## #### #### #???????????????????????????????? | | [## #??# #?????????????????????????????????????? | | ### #??# #???????????????????????+?????????????? | | #?# #??# #?????????????????????????????????????? | | #?#^ ^#??# #??????######?????????????????????????? | | #?# #### #??????# #?????????????????????????? | | ### ##T#"####/s## g ###+##????????????????????? | | %"" Y Y g gg @ #????????????????????? | | ### g gs ^ ?????????????? | | ??# s s sss #??????????? | | ??############ ## ## #########+#??????????? | | ?????????????# ## ## #????????????????????? | | ???????????? "g???????????????????? | | ???????????# % "g???????????????????? | | ???????????# = "????????????????????? | | ???????????# "g???????????????????? | | ???????????### ## ## #????????????????????? | | ?????????????# ## #? #????????????????????? | | ????????????? ? ???????????????????+? | | ???+????????? ? ????????+???????????? | | ?????????????# #???+????????????????? | | ?????????????##+###""""#? ##????????????????????? | | ????????????????????l?l?? ??????????????????????? | | ????????????????????????????????????????????????+? | | ?????????????????????????????????????????????????? | | ??????+????????????????????+?????????????????????? | | ??????????????????????????????????+??+???+???????? | | ?????????????????????????????????????????????????? | | ?????????????????????????????????????????????????? | | ?????????????????????????????????????????????????? | | ?????????????????????????????????????????????????? | | ?????????????????????????????????????????????????? | +----------------------------------------------------+ Best States ------------- Heat Dissipation 45 Energy Generation 14 Energy Capacity 265 Matter Stores 300 Matter Capacity 300 Sight Range 16 Terrain Scan Density 10 Armor Coverage 225 Evasion (%) 55 Offensive Hacking 10 Item Schematics ----------------- Carbon-fiber Leg | -8/Materials | Scanalyzed Lgt. Nuclear Core | -8/Materials | Scanalyzed Hrd. Medium Armor Plating | -8/Materials | Scanalyzed Spread Laser | -8/Materials | Scanalyzed Imp. Heat Sink | -8/Materials | Scanalyzed Robot Schematics ------------------ None Fabricated ------------ Nothing Alien Tech Used ----------------- None Achievements -------------- None Challenges ------------ None Game ------ Seed NullEncryptedBank Manual? 0 Play Time 01:02:14 Cumulative 162.8 hours Start 2025.03.19 @ 15:20:26 End 2025.03.19 @ 17:27:57 Sessions 5 Manual Loads 0 Difficulty Rogue Special Mode None Game No. 81 Rogue 81 Adventurer 0 Explorer 0 Win Type - Total 10 Types 4/0/4/0/2/0/0/0/0 Lore% 72 Gallery% 67 Achievement% 60 Wizard Run 0 Options --------- Layout 1 ASCII 0 Keyboard 0 Movement Numpad Keybinds 0 Fullscreen 1 Font 24/Smallcaps Map View 50x35 Zoom Use 0% Tactical HUD 1 Map Filters NONE Filters NONE Steam 1 RUN: a8042bb3-7ec6-445d-89d5-f1cdcde63cc0